[Event "*** Titled Tuesday Blitz"]
[Site "Chess.com"]
[Date "2021.03.02"]
[Round "2"]
[White "seorobert1971"]
[Black "sbouchet"]
[Result "1-0"]
[WhiteElo "2642"]
[BlackElo "2339"]
[TimeControl "180+1"]
[EndTime "10:17:21 PST"]
[Termination "seorobert1971 won on time"]

1. Nf3 {[%clk 0:03:00.9]} 1... g6 {[%clk 0:02:56.4]} 2. d4 {[%clk 0:03:01.8]}
2... Bg7 {[%clk 0:02:56]} 3. e4 {[%clk 0:03:01.9]} 3... c5 {[%clk 0:02:55.4]} 4.
d5 {[%clk 0:03:01.6]} 4... d6 {[%clk 0:02:54.1]} 5. c4 {[%clk 0:03:01.7]} 5...
Bg4 {[%clk 0:02:49.1]} 6. Nc3 {[%clk 0:03:01.2]} 6... Nf6 {[%clk 0:02:45.1]} 7.
Be2 {[%clk 0:03:00.7]} 7... O-O {[%clk 0:02:44.1]} 8. O-O {[%clk 0:03:00.7]}
8... Nbd7 {[%clk 0:02:44.5]} 9. Nd2 {[%clk 0:02:56.8]} 9... Bxe2 {[%clk
0:02:43.1]} 10. Qxe2 {[%clk 0:02:57.2]} 10... Re8 {[%clk 0:02:27.3]} 11. f4
{[%clk 0:02:52.3]} 11... e6 {[%clk 0:02:20.7]} 12. dxe6 {[%clk 0:02:35.4]} 12...
fxe6 {[%clk 0:02:19.4]} 13. Qd3 {[%clk 0:02:34.9]} 13... Qe7 {[%clk 0:02:11]}
14. Nf3 {[%clk 0:02:33.4]} 14... a6 {[%clk 0:02:04.9]} 15. Kh1 {[%clk
0:02:31.6]} 15... Rad8 {[%clk 0:02:03.6]} 16. Bd2 {[%clk 0:02:26.9]} 16... Nb8
{[%clk 0:02:00]} 17. Rae1 {[%clk 0:02:26.2]} 17... Nc6 {[%clk 0:02:00]} 18. f5
{[%clk 0:02:20.6]} 18... Ng4 {[%clk 0:01:44.4]} 19. h3 {[%clk 0:01:52.1]} 19...
Nge5 {[%clk 0:01:41.1]} 20. Nxe5 {[%clk 0:01:47.4]} 20... dxe5 {[%clk
0:01:15.6]} 21. Qe2 {[%clk 0:01:46.7]} 21... Nd4 {[%clk 0:01:03.1]} 22. Qf2
{[%clk 0:01:46.3]} 22... exf5 {[%clk 0:01:02.5]} 23. exf5 {[%clk 0:01:45.2]}
23... gxf5 {[%clk 0:00:56.6]} 24. Nd5 {[%clk 0:01:44.8]} 24... Qf7 {[%clk
0:00:39.9]} 25. Be3 {[%clk 0:01:34.5]} 25... Rf8 {[%clk 0:00:29.7]} 26. b4
{[%clk 0:01:26.9]} 26... cxb4 {[%clk 0:00:17.2]} 27. Bxd4 {[%clk 0:01:26.5]}
27... exd4 {[%clk 0:00:17.6]} 28. Re7 {[%clk 0:01:26.3]} 28... Qg6 {[%clk
0:00:14.6]} 29. Rxb7 {[%clk 0:01:22.3]} 29... Kh8 {[%clk 0:00:09.7]} 30. Rxb4
{[%clk 0:01:16]} 30... f4 {[%clk 0:00:07.1]} 31. Rb3 {[%clk 0:01:11.1]} 31... d3
{[%clk 0:00:06.5]} 32. Qf3 {[%clk 0:01:09.1]} 32... d2 {[%clk 0:00:05.4]} 33.
Rd3 {[%clk 0:01:08.5]} 33... Rc8 {[%clk 0:00:02.7]} 34. Ne7 {[%clk 0:01:06.2]}
34... Qe6 {[%clk 0:00:01.5]} 35. Nxc8 {[%clk 0:01:05.4]} 35... Qxc8 {[%clk
0:00:02.2]} 36. Rxd2 {[%clk 0:01:02.4]} 36... Qxc4 {[%clk 0:00:02.6]} 37. Qd3
{[%clk 0:00:59.9]} 37... Qc6 {[%clk 0:00:01.3]} 38. Qf3 {[%clk 0:00:57]} 38...
Qc4 {[%clk 0:00:01]} 39. Re2 {[%clk 0:00:56.2]} 1-0

[Event "*** Titled Tuesday Blitz"]
[Site "Chess.com"]
[Date "2021.03.02"]
[Round "2"]
[White "AniJak"]
[Black "tjychess"]
[Result "0-1"]
[WhiteElo "2344"]
[BlackElo "2734"]
[TimeControl "180+1"]
[EndTime "10:17:21 PST"]
[Termination "tjychess won by resignation"]

1. e4 {[%clk 0:03:00.9]} 1... e5 {[%clk 0:02:59.9]} 2. Nf3 {[%clk 0:02:58.4]}
2... Nc6 {[%clk 0:03:00.5]} 3. Bb5 {[%clk 0:02:58.1]} 3... a6 {[%clk 0:03:00.5]}
4. Ba4 {[%clk 0:02:58]} 4... Nf6 {[%clk 0:03:01.1]} 5. O-O {[%clk 0:02:57.8]}
5... b5 {[%clk 0:03:00.9]} 6. Bb3 {[%clk 0:02:57.5]} 6... Bc5 {[%clk 0:03:01.8]}
7. c3 {[%clk 0:02:56.2]} 7... d6 {[%clk 0:03:02.1]} 8. d4 {[%clk 0:02:55.8]}
8... Bb6 {[%clk 0:03:02.3]} 9. h3 {[%clk 0:02:53.6]} 9... Bb7 {[%clk 0:03:00.4]}
10. Bg5 {[%clk 0:02:45.9]} 10... h6 {[%clk 0:02:59.8]} 11. Bxf6 {[%clk
0:02:27.7]} 11... Qxf6 {[%clk 0:03:00.7]} 12. dxe5 {[%clk 0:02:15.9]} 12... Nxe5
{[%clk 0:02:56.5]} 13. Nxe5 {[%clk 0:02:11.6]} 13... dxe5 {[%clk 0:02:54.9]} 14.
Nd2 {[%clk 0:02:11.3]} 14... O-O {[%clk 0:02:53.5]} 15. Qe2 {[%clk 0:02:10.5]}
15... Rad8 {[%clk 0:02:53.1]} 16. Rad1 {[%clk 0:02:07.9]} 16... Qf4 {[%clk
0:02:46.6]} 17. Rfe1 {[%clk 0:01:59.3]} 17... Rd6 {[%clk 0:02:40.5]} 18. Qf3
{[%clk 0:01:46.8]} 18... Rxd2 {[%clk 0:02:17.3]} 19. Qxf4 {[%clk 0:01:44]} 19...
Rxd1 {[%clk 0:02:17.6]} 20. Qxe5 {[%clk 0:01:31.4]} 20... Rxe1+ {[%clk
0:02:16.3]} 21. Kh2 {[%clk 0:01:31.9]} 21... Rxe4 {[%clk 0:02:12.3]} 22. Qf5
{[%clk 0:01:28.5]} 22... Re2 {[%clk 0:02:08.9]} 23. f3 {[%clk 0:01:22.5]} 23...
Rxb2 {[%clk 0:01:30.8]} 24. Kg3 {[%clk 0:01:20.4]} 24... c5 {[%clk 0:01:24]} 25.
Bc2 {[%clk 0:01:19.7]} 25... g6 {[%clk 0:01:23.6]} 26. Qd7 {[%clk 0:01:04]}
26... Bc8 {[%clk 0:01:07.9]} 27. Qd6 {[%clk 0:00:51.1]} 27... Rxc2 {[%clk
0:01:07.3]} 28. Qxb6 {[%clk 0:00:50.8]} 28... Rxc3 {[%clk 0:01:07.9]} 29. Qc7
{[%clk 0:00:46.4]} 29... c4 {[%clk 0:01:05.7]} 30. h4 {[%clk 0:00:44.9]} 30...
h5 {[%clk 0:01:03.5]} 31. Kf4 {[%clk 0:00:39.3]} 31... Be6 {[%clk 0:01:02.2]}
32. Kg5 {[%clk 0:00:37.5]} 32... Kh7 {[%clk 0:01:02.3]} 33. Qe7 {[%clk 0:00:33]}
33... Rc8 {[%clk 0:00:58.8]} 34. Kf6 {[%clk 0:00:27.4]} 34... Rd3 {[%clk
0:00:57.7]} 35. Qb7 {[%clk 0:00:24.7]} 35... c3 {[%clk 0:00:54.8]} 36. g4 {[%clk
0:00:19.6]} 36... c2 {[%clk 0:00:54.1]} 37. gxh5 {[%clk 0:00:18.9]} 37... c1=Q
{[%clk 0:00:52.5]} 38. hxg6+ {[%clk 0:00:19]} 38... Kh6 {[%clk 0:00:53]} 39. Qe4
{[%clk 0:00:12.4]} 39... Qc3+ {[%clk 0:00:49]} 0-1

[Event "*** Titled Tuesday Blitz"]
[Site "Chess.com"]
[Date "2021.03.02"]
[Round "2"]
[White "organdzievhren"]
[Black "tusplingher"]
[Result "1-0"]
[WhiteElo "2434"]
[BlackElo "2211"]
[TimeControl "180+1"]
[EndTime "10:17:21 PST"]
[Termination "organdzievhren won on time"]

1. e4 {[%clk 0:03:00.9]} 1... c5 {[%clk 0:02:59]} 2. Nf3 {[%clk 0:03:01.4]} 2...
g6 {[%clk 0:02:58.8]} 3. h4 {[%clk 0:03:00.4]} 3... h5 {[%clk 0:02:58.2]} 4. Bc4
{[%clk 0:02:59.8]} 4... Nc6 {[%clk 0:02:56.3]} 5. d3 {[%clk 0:02:59.1]} 5... Bg7
{[%clk 0:02:56.2]} 6. Nc3 {[%clk 0:02:58.3]} 6... e6 {[%clk 0:02:55.5]} 7. a4
{[%clk 0:02:57.7]} 7... Nge7 {[%clk 0:02:55.1]} 8. Ng5 {[%clk 0:02:57.7]} 8...
d5 {[%clk 0:02:52.9]} 9. Ba2 {[%clk 0:02:57.5]} 9... O-O {[%clk 0:02:50.2]} 10.
f3 {[%clk 0:02:57.3]} 10... b6 {[%clk 0:02:43.3]} 11. Bf4 {[%clk 0:02:56.1]}
11... Bb7 {[%clk 0:02:36.6]} 12. Qd2 {[%clk 0:02:55.8]} 12... dxe4 {[%clk
0:02:26.4]} 13. fxe4 {[%clk 0:02:52.1]} 13... Qd7 {[%clk 0:02:08.6]} 14. O-O
{[%clk 0:02:46]} 14... Rad8 {[%clk 0:02:02.8]} 15. Rae1 {[%clk 0:02:40.5]} 15...
Nd4 {[%clk 0:01:58.3]} 16. Kh1 {[%clk 0:02:38.2]} 16... a6 {[%clk 0:01:46.6]}
17. Nf3 {[%clk 0:02:34.6]} 17... Nxf3 {[%clk 0:01:41.1]} 18. gxf3 {[%clk
0:02:31.4]} 18... b5 {[%clk 0:01:37.8]} 19. axb5 {[%clk 0:02:30.6]} 19... axb5
{[%clk 0:01:37.8]} 20. Bh6 {[%clk 0:02:28.5]} 20... b4 {[%clk 0:01:34.9]} 21.
Bxg7 {[%clk 0:02:24]} 21... Kxg7 {[%clk 0:01:33.4]} 22. Ne2 {[%clk 0:02:23.5]}
22... Nc6 {[%clk 0:01:15.4]} 23. Rg1 {[%clk 0:02:14.3]} 23... Ne5 {[%clk
0:01:14.8]} 24. Qf4 {[%clk 0:02:07.7]} 24... Qd6 {[%clk 0:00:36.2]} 25. Rg5
{[%clk 0:02:05.1]} 25... Nc6 {[%clk 0:00:34.8]} 26. Qxd6 {[%clk 0:02:04.2]}
26... Rxd6 {[%clk 0:00:34.4]} 27. Rxc5 {[%clk 0:02:04.6]} 27... Ra8 {[%clk
0:00:26.7]} 28. Bc4 {[%clk 0:01:58.9]} 28... Kf8 {[%clk 0:00:20.5]} 29. Kg1
{[%clk 0:01:52]} 29... Ke7 {[%clk 0:00:20]} 30. Kf2 {[%clk 0:01:51.9]} 30... Rc8
{[%clk 0:00:17]} 31. Ke3 {[%clk 0:01:48.5]} 31... Rcd8 {[%clk 0:00:17]} 32. f4
{[%clk 0:01:45]} 32... Rc8 {[%clk 0:00:14.9]} 33. Bb5 {[%clk 0:01:42.8]} 33...
Rcd8 {[%clk 0:00:14.1]} 34. Ra1 {[%clk 0:01:41.8]} 34... Nb8 {[%clk 0:00:12.1]}
35. Ra7 {[%clk 0:01:39]} 35... Rb6 {[%clk 0:00:12.1]} 36. Nd4 {[%clk 0:01:35.3]}
36... Kd6 {[%clk 0:00:09.9]} 37. Rg5 {[%clk 0:01:31.4]} 37... Nd7 {[%clk
0:00:06.5]} 38. Bxd7 {[%clk 0:01:22.3]} 38... Rxd7 {[%clk 0:00:06.4]} 39. Rga5
{[%clk 0:01:20.5]} 39... f6 {[%clk 0:00:03.2]} 40. Rb5 {[%clk 0:01:19.1]} 40...
Rxb5 {[%clk 0:00:03.2]} 41. Nxb5+ {[%clk 0:01:19.2]} 41... Kc5 {[%clk
0:00:03.6]} 42. c4 {[%clk 0:01:16.4]} 42... bxc3 {[%clk 0:00:03.1]} 43. Nxc3
{[%clk 0:01:16.3]} 43... e5 {[%clk 0:00:03]} 44. fxe5 {[%clk 0:01:11]} 44...
fxe5 {[%clk 0:00:02.9]} 45. Ra1 {[%clk 0:01:11.2]} 45... Bc6 {[%clk 0:00:02.2]}
46. Rg1 {[%clk 0:01:10.9]} 1-0

[Event "*** Titled Tuesday Blitz"]
[Site "Chess.com"]
[Date "2021.03.02"]
[Round "2"]
[White "wadsy27"]
[Black "Smirnov_Pavel"]
[Result "0-1"]
[WhiteElo "2538"]
[BlackElo "2849"]
[TimeControl "180+1"]
[EndTime "10:17:23 PST"]
[Termination "Smirnov_Pavel won on time"]

1. c4 {[%clk 0:03:00.9]} 1... e6 {[%clk 0:02:59.5]} 2. g3 {[%clk 0:03:01.1]}
2... d5 {[%clk 0:03:00.4]} 3. Bg2 {[%clk 0:03:01.5]} 3... Nf6 {[%clk 0:03:00.9]}
4. Nf3 {[%clk 0:03:01.9]} 4... Be7 {[%clk 0:03:01.8]} 5. O-O {[%clk 0:03:02.2]}
5... O-O {[%clk 0:03:02.4]} 6. b3 {[%clk 0:03:02.8]} 6... c5 {[%clk 0:03:02.8]}
7. Bb2 {[%clk 0:03:03.2]} 7... d4 {[%clk 0:03:03]} 8. e3 {[%clk 0:03:03.5]} 8...
Nc6 {[%clk 0:03:02.2]} 9. exd4 {[%clk 0:03:04]} 9... cxd4 {[%clk 0:03:03.1]} 10.
Re1 {[%clk 0:03:04.4]} 10... Ng4 {[%clk 0:03:03.7]} 11. h3 {[%clk 0:03:01]}
11... Nh6 {[%clk 0:03:03.6]} 12. Ne5 {[%clk 0:02:54.9]} 12... Nxe5 {[%clk
0:03:03]} 13. Rxe5 {[%clk 0:02:55]} 13... f6 {[%clk 0:03:03.9]} 14. Re1 {[%clk
0:02:54.6]} 14... e5 {[%clk 0:03:04.1]} 15. d3 {[%clk 0:02:44.5]} 15... Nf7
{[%clk 0:03:03.7]} 16. Nd2 {[%clk 0:02:44.1]} 16... Rb8 {[%clk 0:02:57.1]} 17.
Rc1 {[%clk 0:02:40.1]} 17... Bf5 {[%clk 0:02:53.5]} 18. Qf3 {[%clk 0:02:27.4]}
18... Qd7 {[%clk 0:02:52.6]} 19. g4 {[%clk 0:02:23]} 19... Bg6 {[%clk
0:02:47.7]} 20. h4 {[%clk 0:02:13.7]} 20... f5 {[%clk 0:02:44.2]} 21. gxf5
{[%clk 0:01:54.2]} 21... Bxf5 {[%clk 0:02:45.1]} 22. Qg3 {[%clk 0:01:48.6]}
22... Bb4 {[%clk 0:02:38.4]} 23. Re2 {[%clk 0:01:39.3]} 23... Bg4 {[%clk
0:02:37.3]} 24. Nf3 {[%clk 0:01:28.6]} 24... Qf5 {[%clk 0:02:33.9]} 25. Rd1
{[%clk 0:01:04.7]} 25... Bd6 {[%clk 0:02:32]} 26. Re4 {[%clk 0:00:47.4]} 26...
h5 {[%clk 0:02:27.7]} 27. Rde1 {[%clk 0:00:42.7]} 27... Qf6 {[%clk 0:02:16.5]}
28. c5 {[%clk 0:00:25.6]} 28... Bc7 {[%clk 0:01:54]} 29. Rxg4 {[%clk 0:00:25.2]}
29... hxg4 {[%clk 0:01:35.3]} 30. Qxg4 {[%clk 0:00:26.1]} 30... Rbe8 {[%clk
0:01:33.6]} 31. Re2 {[%clk 0:00:23.2]} 31... Nh6 {[%clk 0:01:30.5]} 32. Qg5
{[%clk 0:00:22.9]} 32... Nf5 {[%clk 0:01:28.5]} 33. Qxf6 {[%clk 0:00:20.5]}
33... gxf6 {[%clk 0:01:29.4]} 34. Bh3 {[%clk 0:00:19.4]} 34... Ng7 {[%clk
0:01:26.9]} 35. b4 {[%clk 0:00:15.1]} 35... Kf7 {[%clk 0:01:26.3]} 36. a4 {[%clk
0:00:13.7]} 36... Ne6 {[%clk 0:01:26]} 37. Bf5 {[%clk 0:00:11.8]} 37... Nf4
{[%clk 0:01:25.2]} 38. Re1 {[%clk 0:00:11.7]} 38... Rg8+ {[%clk 0:01:24.6]} 39.
Kf1 {[%clk 0:00:11.5]} 39... Rh8 {[%clk 0:01:22.9]} 40. Bc1 {[%clk 0:00:10.9]}
40... Nd5 {[%clk 0:01:17.6]} 41. b5 {[%clk 0:00:10.2]} 41... Ba5 {[%clk
0:01:12.8]} 42. Bd2 {[%clk 0:00:07.7]} 42... Bxd2 {[%clk 0:01:12.2]} 43. Nxd2
{[%clk 0:00:07.8]} 43... Rxh4 {[%clk 0:01:13.1]} 44. Be4 {[%clk 0:00:08]} 44...
Nf4 {[%clk 0:01:09.8]} 45. Bxb7 {[%clk 0:00:07]} 45... e4 {[%clk 0:01:10.2]} 0-1

[Event "*** Titled Tuesday Blitz"]
[Site "Chess.com"]
[Date "2021.03.02"]
[Round "2"]
[White "Grandmaster2B"]
[Black "Firegrizzly"]
[Result "1-0"]
[WhiteElo "2491"]
[BlackElo "2664"]
[TimeControl "180+1"]
[EndTime "10:17:24 PST"]
[Termination "Grandmaster2B won by checkmate"]

1. e4 {[%clk 0:03:00.9]} 1... c5 {[%clk 0:02:51.5]} 2. Nf3 {[%clk 0:03:01]} 2...
d6 {[%clk 0:02:51]} 3. d4 {[%clk 0:03:01.4]} 3... cxd4 {[%clk 0:02:51]} 4. Nxd4
{[%clk 0:03:02.3]} 4... Nf6 {[%clk 0:02:51.3]} 5. Nc3 {[%clk 0:03:02.7]} 5...
Nc6 {[%clk 0:02:51.8]} 6. Bg5 {[%clk 0:03:02.2]} 6... e6 {[%clk 0:02:50.8]} 7.
Qd2 {[%clk 0:03:02.5]} 7... a6 {[%clk 0:02:50.8]} 8. O-O-O {[%clk 0:03:03]} 8...
Be7 {[%clk 0:02:49.4]} 9. f4 {[%clk 0:03:03.4]} 9... Bd7 {[%clk 0:02:48.8]} 10.
Bxf6 {[%clk 0:03:02.6]} 10... Bxf6 {[%clk 0:02:45.9]} 11. Nxc6 {[%clk
0:02:59.6]} 11... Bxc6 {[%clk 0:02:45.7]} 12. Qe3 {[%clk 0:03:00]} 12... Be7
{[%clk 0:02:35.2]} 13. g4 {[%clk 0:02:58.8]} 13... b5 {[%clk 0:02:34.3]} 14. Bg2
{[%clk 0:02:58.4]} 14... b4 {[%clk 0:02:33.2]} 15. Ne2 {[%clk 0:02:58.4]} 15...
a5 {[%clk 0:02:28]} 16. Kb1 {[%clk 0:02:57.7]} 16... Qc7 {[%clk 0:02:24.8]} 17.
Nd4 {[%clk 0:02:57.5]} 17... Bb7 {[%clk 0:02:20.3]} 18. Bf3 {[%clk 0:02:52.9]}
18... O-O {[%clk 0:02:16.4]} 19. h4 {[%clk 0:02:46.6]} 19... a4 {[%clk
0:02:15.9]} 20. h5 {[%clk 0:02:46.5]} 20... a3 {[%clk 0:02:14.6]} 21. b3 {[%clk
0:02:45.9]} 21... Rfc8 {[%clk 0:02:10.5]} 22. Rh2 {[%clk 0:02:44.9]} 22... Qc3
{[%clk 0:02:08.5]} 23. Qxc3 {[%clk 0:02:44.5]} 23... Rxc3 {[%clk 0:02:09.3]} 24.
Rd3 {[%clk 0:02:37.8]} 24... Rac8 {[%clk 0:02:09.3]} 25. Rhd2 {[%clk 0:02:34]}
25... R3c5 {[%clk 0:02:00.7]} 26. Ne2 {[%clk 0:02:25.8]} 26... h6 {[%clk
0:01:58.5]} 27. Rd4 {[%clk 0:02:24.4]} 27... Rb5 {[%clk 0:01:46.7]} 28. Nc1
{[%clk 0:02:24.4]} 28... Rc3 {[%clk 0:01:38.3]} 29. Be2 {[%clk 0:02:19.7]} 29...
Rb6 {[%clk 0:01:36.5]} 30. Nd3 {[%clk 0:02:16.4]} 30... d5 {[%clk 0:01:31.2]}
31. e5 {[%clk 0:02:11.6]} 31... Ba6 {[%clk 0:01:29.9]} 32. f5 {[%clk 0:01:48]}
32... Bg5 {[%clk 0:01:22.8]} 33. Rd1 {[%clk 0:01:48]} 33... Bxd3 {[%clk
0:01:20.3]} 34. R4xd3 {[%clk 0:01:44]} 34... Rc5 {[%clk 0:01:17.5]} 35. fxe6
{[%clk 0:01:36.4]} 35... fxe6 {[%clk 0:01:16.5]} 36. Rf3 {[%clk 0:01:07.5]}
36... Rb8 {[%clk 0:01:04.8]} 37. Bd3 {[%clk 0:00:58.7]} 37... Be7 {[%clk
0:01:00.1]} 38. Rdf1 {[%clk 0:00:57]} 38... Rf8 {[%clk 0:00:57]} 39. Rxf8+
{[%clk 0:00:52.7]} 39... Bxf8 {[%clk 0:00:57.9]} 40. Bg6 {[%clk 0:00:53.4]}
40... d4 {[%clk 0:00:48.6]} 41. Bf7+ {[%clk 0:00:51.7]} 41... Kh8 {[%clk
0:00:49.1]} 42. Bxe6 {[%clk 0:00:52.6]} 42... Be7 {[%clk 0:00:49.1]} 43. Re1
{[%clk 0:00:41.6]} 43... Bh4 {[%clk 0:00:45.6]} 44. Re4 {[%clk 0:00:40.2]} 44...
Bf2 {[%clk 0:00:42]} 45. Bc4 {[%clk 0:00:36]} 45... Rc7 {[%clk 0:00:40.9]} 46.
Rf4 {[%clk 0:00:32.6]} 46... Bg3 {[%clk 0:00:35.6]} 47. Rf8+ {[%clk 0:00:32.3]}
47... Kh7 {[%clk 0:00:35.9]} 48. Bg8+ {[%clk 0:00:32.7]} 48... Kh8 {[%clk
0:00:35.9]} 49. Bf7+ {[%clk 0:00:33.6]} 49... Kh7 {[%clk 0:00:35.1]} 50. Bg6#
{[%clk 0:00:34.5]} 1-0

[Event "*** Titled Tuesday Blitz"]
[Site "Chess.com"]
[Date "2021.03.02"]
[Round "2"]
[White "PSvidler"]
[Black "Arkady_Gitelson"]
[Result "1-0"]
[WhiteElo "2915"]
[BlackElo "2558"]
[TimeControl "180+1"]
[EndTime "10:17:26 PST"]
[Termination "PSvidler won on time"]

1. e4 {[%clk 0:03:00.9]} 1... c5 {[%clk 0:03:00]} 2. Nf3 {[%clk 0:03:00.4]} 2...
Nc6 {[%clk 0:03:00.7]} 3. Bb5 {[%clk 0:03:00]} 3... e6 {[%clk 0:03:00.7]} 4. O-O
{[%clk 0:02:59.3]} 4... Nge7 {[%clk 0:03:01.4]} 5. c3 {[%clk 0:02:58.3]} 5... a6
{[%clk 0:02:59.8]} 6. Ba4 {[%clk 0:02:54.9]} 6... b5 {[%clk 0:02:59.9]} 7. Bc2
{[%clk 0:02:55]} 7... Bb7 {[%clk 0:02:59.8]} 8. Re1 {[%clk 0:02:54.4]} 8... Ng6
{[%clk 0:02:58.6]} 9. a4 {[%clk 0:02:52.2]} 9... bxa4 {[%clk 0:02:45]} 10. Bxa4
{[%clk 0:02:41.4]} 10... Bd6 {[%clk 0:02:44.2]} 11. d4 {[%clk 0:02:38.5]} 11...
O-O {[%clk 0:02:36.5]} 12. dxc5 {[%clk 0:01:59.8]} 12... Bxc5 {[%clk 0:02:36.2]}
13. Be3 {[%clk 0:02:00.4]} 13... Bxe3 {[%clk 0:02:17.7]} 14. Rxe3 {[%clk
0:02:00.1]} 14... Nce5 {[%clk 0:02:18.4]} 15. Nbd2 {[%clk 0:01:59.1]} 15... Ng4
{[%clk 0:02:12.4]} 16. Re1 {[%clk 0:01:51.6]} 16... d5 {[%clk 0:02:09.7]} 17. e5
{[%clk 0:01:48]} 17... Qc7 {[%clk 0:01:56.8]} 18. Bc2 {[%clk 0:01:37.8]} 18...
f5 {[%clk 0:01:45.5]} 19. exf6 {[%clk 0:01:35.3]} 19... Rxf6 {[%clk 0:01:45]}
20. h3 {[%clk 0:01:23.8]} 20... Nxf2 {[%clk 0:00:47.6]} 21. Kxf2 {[%clk
0:01:20.6]} 21... Qc5+ {[%clk 0:00:48.2]} 22. Kf1 {[%clk 0:01:15.4]} 22... Raf8
{[%clk 0:00:44.1]} 23. Qe2 {[%clk 0:01:08.1]} 23... d4 {[%clk 0:00:24.7]} 24.
Bxg6 {[%clk 0:01:01.3]} 24... Rxg6 {[%clk 0:00:21.3]} 25. cxd4 {[%clk
0:01:01.2]} 25... Qxd4 {[%clk 0:00:17.8]} 26. Qe3 {[%clk 0:00:53.5]} 26... Qh4
{[%clk 0:00:13.5]} 27. Re2 {[%clk 0:00:47.5]} 27... Qg3 {[%clk 0:00:12.3]} 28.
Rf2 {[%clk 0:00:47.2]} 28... e5 {[%clk 0:00:09]} 29. Kg1 {[%clk 0:00:40]} 29...
Qxh3 {[%clk 0:00:06.5]} 30. Qb3+ {[%clk 0:00:37.6]} 30... Kh8 {[%clk 0:00:02.6]}
31. Qxb7 {[%clk 0:00:36.9]} 31... Qg3 {[%clk 0:00:01.2]} 32. Ne4 {[%clk
0:00:35.7]} 32... Qf4 {[%clk 0:00:01]} 33. Nfg5 {[%clk 0:00:32.4]} 1-0

[Event "*** Titled Tuesday Blitz"]
[Site "Chess.com"]
[Date "2021.03.02"]
[Round "2"]
[White "Ajedrez_con_German"]
[Black "Eltaj_Safarli"]
[Result "0-1"]
[WhiteElo "2560"]
[BlackElo "2915"]
[TimeControl "180+1"]
[EndTime "10:17:27 PST"]
[Termination "Eltaj_Safarli won by resignation"]

1. b3 {[%clk 0:03:00.9]} 1... Nf6 {[%clk 0:02:59.8]} 2. Bb2 {[%clk 0:03:00.1]}
2... g6 {[%clk 0:03:00.7]} 3. e3 {[%clk 0:02:58.4]} 3... Bg7 {[%clk 0:03:00.4]}
4. Nf3 {[%clk 0:02:49.5]} 4... O-O {[%clk 0:03:00.5]} 5. Be2 {[%clk 0:02:48.8]}
5... c5 {[%clk 0:02:58.8]} 6. O-O {[%clk 0:02:46.6]} 6... b6 {[%clk 0:02:57.6]}
7. c4 {[%clk 0:02:46.1]} 7... Bb7 {[%clk 0:02:57.3]} 8. Nc3 {[%clk 0:02:45.8]}
8... d6 {[%clk 0:02:56.6]} 9. d4 {[%clk 0:02:45.1]} 9... Nbd7 {[%clk 0:02:56.7]}
10. d5 {[%clk 0:02:42.2]} 10... a6 {[%clk 0:02:55.9]} 11. a4 {[%clk 0:02:41.6]}
11... Qc7 {[%clk 0:02:47.1]} 12. Qd2 {[%clk 0:02:40.1]} 12... Rfe8 {[%clk
0:02:40.9]} 13. Bd3 {[%clk 0:02:38.8]} 13... e6 {[%clk 0:02:38.9]} 14. e4 {[%clk
0:02:36.5]} 14... exd5 {[%clk 0:02:37.3]} 15. exd5 {[%clk 0:02:36.4]} 15... Ng4
{[%clk 0:02:32.9]} 16. h3 {[%clk 0:02:16.2]} 16... Nge5 {[%clk 0:02:31.3]} 17.
Nxe5 {[%clk 0:02:15.6]} 17... Nxe5 {[%clk 0:02:32.2]} 18. Rfe1 {[%clk
0:02:11.8]} 18... Re7 {[%clk 0:02:29]} 19. Re2 {[%clk 0:02:02.6]} 19... Rae8
{[%clk 0:02:27.9]} 20. Rae1 {[%clk 0:02:01.5]} 20... Bc8 {[%clk 0:02:26.3]} 21.
f4 {[%clk 0:01:53.4]} 21... Nxd3 {[%clk 0:02:25.2]} 22. Qxd3 {[%clk 0:01:49.6]}
22... Bf5 {[%clk 0:02:18.7]} 23. Qd2 {[%clk 0:01:45.2]} 23... h5 {[%clk
0:02:16.4]} 24. Nd1 {[%clk 0:01:40.7]} 24... Bxb2 {[%clk 0:02:08.7]} 25. Qxb2
{[%clk 0:01:40.1]} 25... Bd3 {[%clk 0:01:52.6]} 26. Re3 {[%clk 0:01:31.2]} 26...
Rxe3 {[%clk 0:01:52.1]} 27. Rxe3 {[%clk 0:01:20.1]} 27... Rxe3 {[%clk
0:01:52.2]} 28. Nxe3 {[%clk 0:01:20.4]} 28... Qe7 {[%clk 0:01:53.1]} 29. Qd2
{[%clk 0:01:11.2]} 29... Qe4 {[%clk 0:01:51.3]} 30. Nd1 {[%clk 0:01:03.6]} 30...
Bb1 {[%clk 0:01:21.4]} 31. Nc3 {[%clk 0:00:58.9]} 31... Qd3 {[%clk 0:01:10.1]}
32. Qxd3 {[%clk 0:00:38.9]} 32... Bxd3 {[%clk 0:01:11]} 33. Na2 {[%clk
0:00:34.6]} 33... h4 {[%clk 0:01:05]} 34. Nc1 {[%clk 0:00:30.4]} 34... Bc2
{[%clk 0:01:03]} 35. Kf2 {[%clk 0:00:29.6]} 35... Kg7 {[%clk 0:01:03]} 36. Kf3
{[%clk 0:00:24.9]} 36... Kf6 {[%clk 0:00:48.9]} 37. Kg4 {[%clk 0:00:20.6]} 37...
Bd1+ {[%clk 0:00:45]} 38. Kxh4 {[%clk 0:00:18.2]} 38... Kf5 {[%clk 0:00:45.9]}
39. Nd3 {[%clk 0:00:16.2]} 39... Bxb3 {[%clk 0:00:42.9]} 40. Nb2 {[%clk
0:00:12.2]} 40... Kxf4 {[%clk 0:00:41.3]} 0-1